Cogmind - Beta 12 @@@ ROGUE MODE // 2023.04.08 @ 22:33:05 Player: Zellbot Result: Destroyed by Y-45 Defender with Heavy Assault Rifle Performance ------------- Evolutions (1) 500 Regions Visited (3) 600 Robots Destroyed (15) 75 Value Destroyed (227) 227 Prototype IDs (0) 0 Alien Tech Used (0) 0 Bonus (0) 0 TOTAL SCORE: 1402 Bonus ------- None Cogmind --------- Core Integrity 0/400 Matter 235/300 Energy 100/100 System Corruption 0% Temperature Cool (0) Movement Core (50) Location -9/Materials Parts ------- > --- POWER (1) -------- (None) > --- PROPULSION (2) --- (None) > --- UTILITY (4) ------ Signal Interpreter Improved Signal Interpreter > --- WEAPON (2) ------- (None) > --- INVENTORY (5) ---- High-capacity Matter Pod (200) Reaction Control System Reaction Control System Propulsion Shielding Peak State ------------ > --- POWER ------------ Light Ion Engine > --- PROPULSION ------- Cesium-ion Thruster Cesium-ion Thruster > --- UTILITY ---------- Sensor Array Signal Interpreter Terrain Scanner Hacking Suite > --- WEAPON ----------- Assault Cannon > --- INVENTORY -------- Flight Unit Flight Unit Cesium-ion Thruster Cesium-ion Thruster High-capacity Matter Pod [Rating: 16] Favorites ----------- Power Light Ion Engine Engine Light Ion Engine Propulsion Flight Unit Leg Aluminum Leg Flight Unit Flight Unit Utility Hacking Suite Device Sensor Array Storage Small Storage Unit Processor Signal Interpreter Hackware Hacking Suite Weapon Assault Rifle Energy Gun Small Laser Ballistic Gun Assault Rifle Ballistic Cannon Assault Cannon Build | -11 -10 -10 -9 ------- Run | Jun Mat Min Mat Slots Evolved 2 | . . . 2 Power . | . . . . Propulsion . | . . . . Utility 2 | . . . 2 Weapon . | . . . . Parts Attached 28 | 5 9 . 14 Power 3 | 1 1 . 1 Engine 3 | 1 1 . 1 Core . | . . . . Reactor . | . . . . Propulsion 11 | 2 2 . 7 Treads . | . . . . Leg 2 | 2 . . . Wheel . | . . . . Hover . | . . . . Flight 9 | . 2 . 7 Utility 7 | . 4 . 3 Device 2 | . 1 . 1 Storage 2 | . 2 . . Processor 2 | . . . 2 Hackware 1 | . 1 . . Protection . | . . . . Artifact . | . . . . Weapon 7 | 2 2 . 3 Energy Gun 1 | . 1 . . Energy Cannon . | . . . . Ballistic Gun 3 | 2 1 . . Ballistic Cannon 3 | . . . 3 Launcher . | . . . . Special Weapon . | . . . . Impact Weapon . | . . . . Slashing Weapon . | . . . . Piercing Weapon . | . . . . Special Melee Weapon . | . . . . Unidentified Prototypes . | . . . . Parts Lost 13 | . 1 . 12 Power 2 | . . . 2 Propulsion 6 | . . . 6 Utility 3 | . . . 3 Weapon 2 | . 1 . 1 Highest Loss Streak 11 | . 1 . 11 To Critical Strikes 1 | . . . 1 Average Slot Usage (%) 82 | . 90 100 51 Engine 11 | . 14 14 5 Leg 9 | . 16 . . Flight 14 | . 11 28 11 Device 8 | . 5 14 11 Storage 4 | . 8 . . Processor 3 | . . . 13 Hackware 7 | . 6 14 4 Energy Gun 5 | . 4 14 1 Ballistic Gun 15 | . 22 14 1 Ballistic Cannon 1 | . . . 4 Naked Turns . | . . . . Heaviest Build 12 | 7 12 7 10 Greatest Support 20 | 20 20 8 10 Greatest Overweight (x) 1 | . . . 1 Average Overweight (x) . | . . . . Largest Inventory Capacity 8 | 5 8 5 5 Average Capacity 5 | 5 6 5 5 Most Carried 8 | 5 8 5 5 Average Carried 4 | 2 4 5 3 Final Capacity 5 | 5 5 5 5 Final Carried 5 | 5 5 5 4 Class Distribution -------------------- 57% | Mutant 33% | Scavenger-Mutant 9% | Scout Dominant Class ---------------- Mutant | -10/Materials Scavenger-Mutant | -10/Mines Mutant | -9/Materials Resources | -11 -10 -10 -9 ----------- Run | Jun Mat Min Mat Matter Collected 706 | 185 521 . . Remotely . | . . . . Salvage Created 450 | . 450 . . Parts 24 | . 24 . . Haulers Intercepted 2 | . 2 . . Recyclers Shooed . | . . . . Parts Field Recycled . | . . . . Retrieved Matter . | . . . . Parts Self-Destructed . | . . . . Prevented . | . . . . Kills | -11 -10 -10 -9 ------- Run | Jun Mat Min Mat Combat Hostiles Destroyed 9 | . 9 . . Guns 9 | . 9 . . Classes Destroyed 7 | . 7 . . Worker 1 | . 1 . . Builder 1 | . 1 . . Hauler 2 | . 2 . . Recycler 1 | . 1 . . Operator 1 | . 1 . . Swarmer 6 | . 6 . . Grunt 3 | . 3 . . Best Kill Streak 4 | . 4 . . Combat Bots Only 3 | . 3 . . Max Kills in Single Turn 1 | . 1 . . Gunslinging . | . . . . Exploded . | . . . . Melee . | . . . . Uniques/NPCs Destroyed . | . . . . Combat | -11 -10 -10 -9 -------- Run | Jun Mat Min Mat Damage Taken 1209 | . 374 . 835 Core 502 | . 94 . 408 Absorbed by Shields . | . . . . Core Remaining (%) 81 | 100 . 62 . Volleys Fired 44 | . 44 . . Largest 2 | . 2 . . Hottest 60 | . 60 . . Shots Fired 82 | . 82 . . Gun 82 | . 82 . . Cannon . | . . . . Launcher . | . . . . Special . | . . . . Kinetic 65 | . 65 . . Thermal 17 | . 17 . . Explosive . | . . . . Electromagnetic . | . . . . Robot Hit Streak 10 | . 10 . . Robot Miss Streak 2 | . 2 . . Penetration Max . | . . . . Secondary Targets 1 | . 1 . . Max Gunslinging Chain 1 | . 1 . . Shots Hit Robots 56 | . 56 . . Core Hits 21 | . 20 . 1 Critical Kills . | . . . . Critical Parts Destroyed . | . . . . Critical Strikes . | . . . . Melee Attacks . | . . . . Impact . | . . . . Slashing . | . . . . Piercing . | . . . . Sneak Attacks . | . . . . Combat Hostiles . | . . . . Follow-up Attacks . | . . . . Damage Inflicted 698 | . 672 . 26 Guns 672 | . 672 . . Cannons . | . . . . Explosions . | . . . . Melee . | . . . . Ramming 26 | . . . 26 Kinetic 564 | . 564 . . Thermal 108 | . 108 . . Explosive . | . . . . Electromagnetic . | . . . . Impact . | . . . . Slashing . | . . . . Piercing . | . . . . Highest Corruption . | . . . . Average Corruption . | . . . . Corruption Purged . | . . . . Corruption Blocked . | . . . . Overload Shots . | . . . . Overflow Damage 1 | . 1 . . Projectiles . | . . . . Explosions 1 | . 1 . . Melee . | . . . . Knockbacks . | . . . . Impact . | . . . . Kinetic . | . . . . Secondary . | . . . . Self-Inflicted Damage 102 | . 90 . 12 Shots 1 | . 1 . . Rammed 4 | . . . 4 Targets Rammed 4 | . . . 4 Kicked . | . . . . Crushed . | . . . . Highest Temperature 36 | . 36 . 1 Average Temperature 10 | . 10 . 1 Received Heat Transfer 336 | . 66 . 270 Siege Activations . | . . . . Robots Corrupted . | . . . . Combat Hostiles . | . . . . Parts Fried . | . . . . Impact Corruptions . | . . . . Robots Melted . | . . . . Combat Hostiles . | . . . . Parts Melted . | . . . . Heat Transferred 250 | . 250 . . Parts Sabotaged . | . . . . Parts Stolen . | . . . . Parts Stripped . | . . . . Power Chain Reactions . | . . . . Missiles Intercepted . | . . . . Alert | -11 -10 -10 -9 ------- Run | Jun Mat Min Mat Peak Influence 339 | . 305 76 339 Initial 46 | . . 46 29 Average 106 | . 129 64 124 Maximum Alert Level 1 | . 1 . 1 Low Security (%) 77 | 100 69 100 72 Level 1 22 | . 30 . 27 Level 2 . | . . . . Level 3 . | . . . . Level 4 . | . . . . Level 5 . | . . . . High Security . | . . . . Max Security . | . . . . Squads Dispatched 5 | . 3 . 2 Investigation 3 | . 2 . 1 Extermination . | . . . . Reinforcement 2 | . 1 . 1 Assault . | . . . . Garrison . | . . . . Intercept . | . . . . Searches Triggered . | . . . . Construction Impeded . | . . . . Haulers Reinforced . | . . . . Active Scanning Responses . | . . . . Cargo Convoy Interrupts . | . . . . Stealth | -11 -10 -10 -9 --------- Run | Jun Mat Min Mat Distress Signals . | . . . . Communications Jammed . | . . . . Distress Signals . | . . . . Times Spotted 45 | . 11 1 33 Peak Tracking Total 19 | . 4 1 19 Tactical Retreats 6 | . . . 6 Traps | -11 -10 -10 -9 ------- Run | Jun Mat Min Mat Traps Triggered 3 | . 1 . 2 Indirectly . | . . . . Trap Hack Attempts . | . . . . Triggered . | . . . . Disarmed . | . . . . Reprogrammed . | . . . . Reused . | . . . . Traps Extracted . | . . . . Installed . | . . . . Triggered . | . . . . Machines | -11 -10 -10 -9 ---------- Run | Jun Mat Min Mat Machines Disabled 2 | . 2 . . Max in Single Turn 2 | . 2 . . Machines Repaired . | . . . . Machines Sabotaged . | . . . . Overloaded Fab Kills . | . . . . Hacking | -11 -10 -10 -9 --------- Run | Jun Mat Min Mat Machines Accessed 4 | . 3 . 1 Terminals 3 | . 3 . . Fabricators . | . . . . Repair Stations . | . . . . Recycling Units 1 | . . . 1 Scanalyzers . | . . . . Garrison Access . | . . . . Total Hacks 16 | . 12 . 4 Successful 10 | . 6 . 4 Failed 6 | . 6 . . Catastrophic 1 | . 1 . . Database Lockouts . | . . . . Manual 7 | . 7 . . Terminals 12 | . 12 . . Fabricators . | . . . . Repair Stations . | . . . . Recycling Units 4 | . . . 4 Scanalyzers . | . . . . Garrison Access . | . . . . Terminal Hacks 6 | . 6 . . Record 3 | . 3 . . Part Schematic 1 | . 1 . . Robot Analysis 1 | . 1 . . Recall Reinforcements 1 | . 1 . . Fabricator Hacks . | . . . . Repair Station Hacks . | . . . . Recycling Unit Hacks 4 | . . . 4 Process 1 | . . . 1 Report Inventory 1 | . . . 1 Retrieve Matter 2 | . . . 2 Scanalyzer . | . . . . Garrison Access Hacks . | . . . . Unauthorized Hacks . | . . . . Terminals . | . . . . Fabricators . | . . . . Repair Stations . | . . . . Recycling Units . | . . . . Scanalyzers . | . . . . Garrison Access . | . . . . Data Cores Recovered . | . . . . Used . | . . . . Hacking Detections 3 | . 2 . 1 Full Trace Events 3 | . 2 . 1 Feedback Events . | . . . . Feedback Blocked . | . . . . Robot Schematics Acquired . | . . . . Robots Built . | . . . . Authchips . | . . . . Time . | . . . . Total Robot Build Rating . | . . . . Part Schematics Acquired 1 | . 1 . . Parts Built . | . . . . Authchips . | . . . . Time . | . . . . Total Part Build Rating . | . . . . Parts Repaired . | . . . . Time . | . . . . Parts Recycled . | . . . . Recycled Matter 33 | . . . 33 Retrieved Matter . | . . . . Retrieved Components . | . . . . Parts Scanalyzed . | . . . . Part Schematics Acquired . | . . . . Parts Damaged . | . . . . Bothacking | -11 -10 -10 -9 ------------ Run | Jun Mat Min Mat Used RIF Installer . | . . . . Robots Hacked . | . . . . Non-combat . | . . . . Combat . | . . . . Robot Hacks Applied . | . . . . Relay Couplers Released . | . . . . Fabnet Peak Effective % . | . . . . Robots Rewired . | . . . . Allies Hacked . | . . . . Hacks Repelled . | . . . . Allies | -11 -10 -10 -9 -------- Run | Jun Mat Min Mat Total Allies . | . . . . Largest Group . | . . . . Highest-Rated Group . | . . . . Highest-Rated Ally . | . . . . Total Orders . | . . . . Ally Attacks . | . . . . Total Damage . | . . . . Kills . | . . . . Allies Corrupted . | . . . . Allies Melted . | . . . . Intel | -11 -10 -10 -9 ------- Run | Jun Mat Min Mat Robot Analysis Total 1 | . 1 . . Derelict Logs Recovered 1 | . . 1 . Drone Launches . | . . . . Drone Recoveries . | . . . . Exploration | -11 -10 -10 -9 ------------- Run | Jun Mat Min Mat Turns Passed 939 | 78 500 158 203 Spaces Moved 1414 | 60 521 419 414 Core 166 | 12 . . 154 Treads . | . . . . Legs 230 | 48 182 . . Wheels . | . . . . Hover . | . . . . Flight 1018 | . 339 419 260 Fastest Speed 32 | 50 37 37 32 Average Speed 51 | 106 65 37 39 Slowest Speed 120 | 120 120 37 115 Overloaded Moves . | . . . . Propulsion Burnouts . | . . . . Robots Hopped 16 | . 4 6 6 Cave-ins Triggered . | . . . . Exploration Rate (%) 52 | 3 62 93 52 Regions Visited 3 Branch Regions 1 Pre-discovered Areas 1 | . . 1 . Known Exits Taken . | . . . . Unknown Exits Taken 3 | 1 1 1 . Scrap Searched 1 | . . 1 . Spaces Dug . | . . . . Terrain Destroyed 21 | . 21 . . Melee . | . . . . Projectile . | . . . . AOE 21 | . 21 . . Terrain Rammed . | . . . . Walls Destroyed . | . . . . Machines Disabled . | . . . . Actions | -11 -10 -10 -9 --------- Run | Jun Mat Min Mat Total 1528 | 73 596 415 444 Wait 18 | . 6 3 9 Move 1381 | 59 512 407 403 Hop 14 | . 4 5 5 Pick Up 22 | 7 10 . 5 Fast Attach 15 | 5 2 . 8 Attach 10 | . 4 . 6 Detach 1 | . 1 . . Swap 3 | . 3 . . Drop 16 | 2 10 . 4 Fire 44 | . 44 . . Melee . | . . . . Ram 4 | . . . 4 Kick . | . . . . Crush . | . . . . Escape Stasis . | . . . . Rewire . | . . . . Trap . | . . . . Miscellaneous . | . . . . Route ------- -11/Junkyard -10/Materials (discovered 2 exits: *Mat / [*Min]) -10/Mines -9/Materials (discovered 2 exits: *Mat x2) History --------- Turn | Location | Event 13 | -11/Junkyard | Discovered new exit (range 15) 79 | -11/Junkyard | Entered Materials 292 | -10/Materials | Discovered new exit (range 16) 317 | -10/Materials | Build established: Mutant 457 | -10/Materials | Discovered new exit (range 6) 579 | -10/Materials | Entered Mines 603 | -10/Mines | Found a hidden stash of uninstalled traps 619 | -10/Mines | Discovered new exit (range 14) 674 | -10/Mines | Received a Rocket Launcher from a helpful Derelict 696 | -10/Mines | Joined a pair of Derelicts in attacking an 0b10 outpost 696 | -10/Mines | Learned location of Zion (-7) 733 | -10/Mines | Build established: Scavenger-Mutant 737 | -10/Mines | Entered Materials 737 | -9/Materials | Evolved 2 slots: Utility x2 819 | -9/Materials | Discovered new exit (range 8) 863 | -9/Materials | Core integrity fell below 50% 881 | -9/Materials | Lost 11 parts (2p5n3u1w) 915 | -9/Materials | Discovered new exit (range 8) 919 | -9/Materials | Identified exit to Materials 935 | -9/Materials | Core integrity fell below 20% 940 | -9/Materials | Destroyed by Y-45 Defender with Heavy Assault Rifle Last Messages --------------- 00849_ Sensor Array destroyed. 00850_ Lgt. Ion Engine destroyed. 00881_ Slammed into T-07 Excavator. 00882_ Slammed into R-06 Scavenger. 00896_ K-01 Serf collects debris. 00901_ Acquired Imp. Signal Interpreter. 00903_ Acquired Reaction Control System. 00915_ EXIT=FOUND 00919_ EXIT=IDENTIFIED: MATERIALS 00928_ O-16 Technician: "IFF HANDSHAKE FAILED. SECURING TERMINAL." 00928_ K-01 Serf collects debris. 00935_ Flight Unit destroyed. 00935_ K-01 Serf collects debris. 00936_ O-16 Technician uses terminal to summon reinforcements. 00936_ ALERT: Hostiles spotted, dispatching reinforcements to Terminal M002. 00936_ O-16 Technician locks terminal. 00937_ Slammed into G-34 Mercenary. 00938_ K-01 Serf collects debris. 00938_ Slammed into G-34 Mercenary. Map ----- +----------------------------------------------------+ | ??????????????????????????????????# /???? ? | | ??????????????????????????????????# #???? ? | | ??????????????????????????????????# #???? ? # | | ??????????????????????????????????# #????? # | | ???????????????????????#####??????# #?????###?# | | ???????????????????????# ######## ######????? | | ???????????????????????# #? | | ???????????????????????# ########+######## #? | | ???????????????????????## ##????# #?????????? | | ????????????????????????# #?????# #?????????? | | ????????????????????????# #?????#[ #?????????? | | ????????????????????????# #?????# """ #?????????? | | ????????????????????????# #?????# """ #?????????? | | ????????????????????????# #?????# """ #?????????? | | ????????????????????????# #?????########?????????? | | ????????????????????????# #??????????????????????? | | ????????????????????????# #??????????????????????? | | ????????????????????????# #########??????????????? | | ????????????????????????# ## #?????????###### | | ???????????????????####?# ## #?????????# | | ???????????????????# ?# ## #?????????# """ | | ???????????????????# # ## ########### """ | | ???????????????????# # ## # ^ !! # """ | | ???????????????????# + ## # ! # | | ???????????????????# #Y## # + """ | | ???????????????????# #@## # # """ | | ???????????????????# /g + # # """ | | ???????????????????# # ## # ## | | ???????????????????# # ## / "" "# | | ???????????????????####?# ## # "" T# | | ????????????????????????# ## # T" "###### | | ????????????????????????# ######+## "" ##????? | | ????????????????????##### "" #?????? | | ????????????????????#!! #?????? | | ????????????????????#! #?????? | | ????????????????????#! ########+####### #?##### | | ????????????????????#! #?????? ?????# #? | | ????????????????????#!! #??????"" ?????# # """ | | ????????????????????#!! #?????""" T????# # """ | | ????????????????????#####?????""" "????# + """ | | ????????????????????????????? ???# < # | | ????????????????????????????? """ ???# # | | ???????????????????????????????"" !??#####?##### | | ????????????????????????????????? ????????????? | | ????????????????????????????????? ! ????????????? | | ?????????????????????????????????####????????????? | | ?????????????????????????????????????????????????? | | ?????????????????????????????????????????????????? | | ?????????????????????????????????????????????????? | | ?????????????????????????????????????????????????? | +----------------------------------------------------+ Best States ------------- Heat Dissipation 28 Energy Generation 10 Energy Capacity 125 Matter Stores 300 Matter Capacity 300 Sight Range 16 Robot Scan Range 14 Terrain Scan Range 14 Terrain Scan Density 10 Evasion (%) 63 Offensive Hacking 10 Item Schematics ----------------- Flight Unit | -10/Materials | Hacked Robot Schematics ------------------ None Fabricated ------------ Nothing Alien Tech Used ----------------- None Achievements -------------- None Challenges ------------ None Game ------ Seed SuspensionCouplerField Manual? 0 Play Time 00:17:25 Cumulative 28.4 hours Start 2023.04.08 @ 22:16:54 End 2023.04.08 @ 22:33:05 Sessions 1 Manual Loads 0 Difficulty Rogue Special Mode None Game No. 24 Rogue 24 Adventurer 0 Explorer 0 Win Type - Total 0 Types 0/0/0/0/0/0/0/0/0 Lore% 18 Gallery% 35 Achievement% 32 Wizard Run 0 Options --------- ASCII 0 Keyboard 0 Movement Numpad Keybinds 0 Fullscreen 1 Font 18/SmallcapsGlow Map View 76x50 Tactical HUD 1 Map Filters NONE Filters NONE Steam 1 RUN: 1b23ffbe-2a6f-4586-b29d-7b2835d9bfd6